Cogmind - Beta 15 @@@ ROGUE MODE // 2025.09.28 @ 14:36:02 Player: LameThyst Result: Destroyed by X-62 Marksman with Pulse Rifle Performance ------------- Evolutions (2) 1000 Regions Visited (7) 1400 Robots Destroyed (107) 535 Value Destroyed (2402) 2402 Prototype IDs (29) 580 Alien Tech Used (0) 0 Bonus (357) 357 TOTAL SCORE: 6274 Bonus ------- High Alert Combat Kills 83 Follower Combat Kills 274 Cogmind --------- Core Integrity 0/550 Matter 210/300 Energy 100/100 System Corruption 4% Temperature Cool (27) Movement Core (400) Ox7 Location -8/Materials Parts ------- > --- POWER (1) -------- (None) > --- PROPULSION (4) --- (None) > --- UTILITY (4) ------ Large Storage Unit > --- WEAPON (2) ------- Great Maul > --- INVENTORY (15) --- Improved Carbon-fiber Leg High-capacity Matter Pod (200) Structural Scanner Makeshift Sensor Array Improved Signal Interpreter Hacking Suite Supersonic Drone Bay (1/1) Plasma Cutter Peak State ------------ > --- POWER ------------ Cooled Deuterium Engine > --- PROPULSION ------- Titanium Leg Improved Carbon-fiber Leg Improved Carbon-fiber Leg Improved Carbon-fiber Leg > --- UTILITY ---------- Large Storage Unit Structural Scanner Advanced Targeting Computer Hardened Medium Armor Plating > --- WEAPON ----------- Gauss Cannon Advanced EMP Blaster > --- INVENTORY -------- Cooled Deuterium Engine Improved Carbon-fiber Leg Armored Wheel High-capacity Matter Pod Makeshift Sensor Array Improved Signal Interpreter Seismic Detector Hacking Suite Supersonic Drone Bay Improved EM Shotgun Improved Assault Rifle Improved Assault Rifle Rocket Launcher Plasma Cutter Great Maul [Rating: 41] Favorites ----------- Power Improved Ion Engine Engine Improved Ion Engine Power Core Nuclear Core Propulsion Aluminum Leg Leg Aluminum Leg Wheel Compact Wheel Utility Seismic Detector Device Seismic Detector Storage Large Storage Unit Processor Improved Targeting Computer Protection Hardened Medium Armor Plating Weapon Heavy Assault Rifle Energy Gun Particle Gun Ballistic Gun Heavy Assault Rifle Ballistic Cannon Gauss Cannon Launcher Grenade Launcher Special Weapon Mining Laser Impact Weapon Great Maul Slashing Weapon Makeshift Axe Build | -11 -10 -10 -9 -9 -9 -8 -8 ------- Run | Yrd Mat Min Mat Min Exi Min Mat Slots Evolved 4 | . . . 2 . . . 2 Power . | . . . . . . . . Propulsion 2 | . . . 1 . . . 1 Utility 2 | . . . 1 . . . 1 Weapon . | . . . . . . . . Parts Attached 81 | 9 14 1 27 1 4 1 24 Power 11 | 1 2 1 3 . . . 4 Engine 9 | 1 2 1 2 . . . 3 Core 2 | . . . 1 . . . 1 Reactor . | . . . . . . . . Propulsion 23 | 3 3 . 7 . 3 1 6 Treads . | . . . . . . . . Leg 21 | 2 3 . 7 . 3 1 5 Wheel 2 | 1 . . . . . . 1 Hover . | . . . . . . . . Flight . | . . . . . . . . Utility 20 | 2 5 . 7 . . . 6 Device 7 | 1 3 . 2 . . . 1 Storage 5 | 1 2 . 1 . . . 1 Processor 2 | . . . 1 . . . 1 Hackware . | . . . . . . . . Protection 6 | . . . 3 . . . 3 Artifact . | . . . . . . . . Weapon 27 | 3 4 . 10 1 1 . 8 Energy Gun 6 | 1 2 . 2 . . . 1 Energy Cannon . | . . . . . . . . Ballistic Gun 13 | 2 . . 8 . . . 3 Ballistic Cannon 1 | . . . . . . . 1 Launcher 4 | . 1 . . 1 . . 2 Special Weapon 1 | . 1 . . . . . . Impact Weapon 1 | . . . . . . . 1 Slashing Weapon 1 | . . . . . 1 . . Piercing Weapon . | . . . . . . . . Special Melee Weapon . | . . . . . . . . Unidentified Prototypes 6 | . . . 2 . . . 4 Corrupted Parts 1 | . . . . . . 1 . System Corruption 1 | . . . . . . 1 . Parts Lost 17 | . . . 1 . . . 16 Power 2 | . . . . . . . 2 Propulsion 5 | . . . . . . . 5 Utility 3 | . . . . . . . 3 Weapon 7 | . . . 1 . . . 6 Highest Loss Streak 16 | . . . 1 . . . 16 To Critical Strikes . | . . . . . . . . Average Backups 13 | 4 9 10 14 15 15 15 14 Power 1 | . 1 1 . 1 1 1 . Propulsion 2 | 1 2 3 2 3 3 3 1 Utility 4 | . 2 2 4 5 5 6 6 Weapon 4 | 1 3 4 5 5 4 4 4 Tool/Special . | . . . . . . . . Unused Backups 25 | . 3 1 8 1 2 1 9 Power 3 | . 1 . 1 . . . 1 Propulsion 4 | . 2 . . . . 1 1 Utility 9 | . . 1 1 . 1 . 6 Weapon 8 | . . . 6 1 1 . . Tool/Special 1 | . . . . . . . 1 Average Slot Usage (%) 99 | . 100 100 99 100 100 100 98 Engine 10 | . 14 14 9 11 11 11 6 Leg 32 | . 28 28 33 33 33 33 34 Device 12 | . 14 14 9 11 11 11 14 Storage 11 | . 14 14 11 11 11 11 9 Processor 7 | . . . 10 11 11 11 8 Energy Gun 3 | . 11 . 2 . . 2 . Ballistic Gun 16 | . 16 28 18 21 18 11 8 Slashing Weapon 1 | . . . . . 3 8 . Peak Build Rating 41 | 7 9 8 17 17 25 26 41 Average Rating 17 | 5 8 8 14 16 19 25 33 On Entrance 13 | . 7 8 8 17 17 25 26 Naked Turns . | . . . . . . . . Heaviest Build 51 | 14 21 19 36 34 34 34 51 Greatest Support 73 | 20 20 20 33 33 48 50 73 Greatest Overweight (x) 7 | 1 1 . 1 1 1 . 7 Average Overweight (x) . | . . . . 1 . . . Largest Inventory Capacity 15 | 8 10 10 15 15 15 15 15 Average Capacity 13 | 7 9 10 14 15 15 15 15 Most Carried 15 | 7 10 10 15 15 15 15 15 Average Carried 13 | 4 9 10 14 14 14 15 14 Final Capacity 15 | 8 10 10 15 15 15 15 15 Final Carried 15 | 7 10 10 15 15 15 15 8 Class Distribution -------------------- 50% | Mutant 49% | Scavenger-Mutant Dominant Class ---------------- Mutant | -10/Materials Scavenger-Mutant | -10/Mines Scavenger-Mutant | -9/Materials Scavenger-Mutant | -9/Mines Mutant | -9/Exiles Mutant | -8/Mines Mutant | -8/Materials Resources | -11 -10 -10 -9 -9 -9 -8 -8 ----------- Run | Yrd Mat Min Mat Min Exi Min Mat Matter Collected 2616 | 308 377 119 708 92 80 60 872 Remotely . | . . . . . . . . Salvage Created 3611 | 156 474 152 1233 48 323 233 992 Parts 255 | 9 38 11 86 7 15 21 68 Haulers Intercepted 9 | . 1 . 6 . . . 2 Recyclers Shooed 3 | . . . 3 . . . . Parts Field Recycled . | . . . . . . . . Retrieved Matter . | . . . . . . . . Parts Self-Destructed . | . . . . . . . . Prevented . | . . . . . . . . Kills | -11 -10 -10 -9 -9 -9 -8 -8 ------- Run | Yrd Mat Min Mat Min Exi Min Mat Combat Hostiles Destroyed 76 | . 13 4 16 7 . 7 29 Melee 1 | . . . . . . . 1 Guns 38 | . 7 2 13 3 . 7 6 Cannons 10 | . . . . . . . 10 AOE 25 | . 6 2 3 4 . . 10 Classes Destroyed 10 | 2 6 . 2 . . . . Worker 2 | . 1 . . . . 1 . Builder 4 | . 1 . 2 . . . 1 Tunneler 4 | 4 . . . . . . . Hauler 9 | . 1 . 6 . . . 2 Recycler 6 | 1 1 1 3 . . . . Operator 2 | . . . 1 . . . 1 Watcher 4 | . 1 . 3 . . . . Swarmer 35 | . 6 2 7 7 . 4 9 Grunt 31 | . 7 2 3 . . 3 16 Sentry 10 | . . . 6 . . . 4 Best Kill Streak 12 | 4 4 3 4 4 . 4 12 Combat Bots Only 11 | . 4 2 3 4 . 4 11 Max Kills in Single Turn 4 | 1 4 1 4 3 . 2 3 Gunslinging 1 | . . . . . . 1 . Exploded 3 | . 3 1 3 2 . . 3 Melee 1 | . . . . . . . 1 Uniques/NPCs Destroyed . | . . . . . . . . Combat | -11 -10 -10 -9 -9 -9 -8 -8 -------- Run | Yrd Mat Min Mat Min Exi Min Mat Hostile Shots Fired 369 | . 54 18 70 13 . 11 203 Missed 90 | . 11 6 24 4 . 3 42 Hits 279 | . 43 12 46 9 . 8 161 Projectile 279 | . 43 12 46 9 . 8 161 Critical Strikes 11 | . . 1 2 . . . 8 Damage Taken 4372 | . 470 149 629 94 . 122 2908 Core 857 | . 117 41 65 38 . 32 564 Absorbed by Shields . | . . . . . . . . Regen/Repaired (Parts) 33 | . . . . . . . 33 Core Remaining (%) 67 | 100 . 36 . . . 66 . Volleys Fired 208 | 6 49 13 78 4 . 10 48 Largest 2 | 2 2 2 2 2 . 2 2 Hottest 100 | 60 100 50 85 53 . 68 73 Shots Fired 403 | 12 92 26 154 8 . 20 91 Gun 343 | 12 87 24 153 4 . 20 43 Cannon 33 | . . . . . . . 33 Launcher 25 | . 3 2 1 4 . . 15 Special 2 | . 2 . . . . . . Kinetic 301 | 6 52 24 129 4 . 10 76 Thermal 60 | 6 37 . 17 . . . . Explosive 25 | . 3 2 1 4 . . 15 Electromagnetic 17 | . . . 7 . . 10 . Robot Hit Streak 13 | 6 13 5 11 6 . 12 12 Robot Miss Streak 5 | 2 4 3 5 . . 2 4 Penetration Max . | . . . . . . . . Secondary Targets 4 | . . 1 1 . . 1 1 Max Gunslinging Chain 1 | . . 1 1 . . 1 1 Shots Hit Robots 288 | 7 56 13 107 3 19 14 69 Core Hits 176 | 5 31 10 53 8 6 11 52 Critical Kills 1 | . . . . . . . 1 Critical Parts Destroyed 3 | . . . 2 . . . 1 Critical Strikes 9 | . . . 2 . . . 7 Destroy 2 | . . . 2 . . . . Blast 5 | . . . . . . . 5 Smash 2 | . . . . . . . 2 Melee Attacks 27 | . . . . . 19 . 8 Impact 8 | . . . . . . . 8 Slashing 19 | . . . . . 19 . . Piercing . | . . . . . . . . Sneak Attacks 1 | . . . . . . . 1 Combat Hostiles . | . . . . . . . . Follow-up Attacks . | . . . . . . . . Damage Inflicted 7919 | 99 1072 157 1700 327 1449 220 2895 Guns 3244 | 99 760 119 1527 44 . 220 475 Cannons 679 | . . . . . . . 679 Explosions 2247 | . 312 38 160 283 . . 1454 Melee 1736 | . . . . . 1449 . 287 Ramming 13 | . . . 13 . . . . Kinetic 3137 | 40 427 119 1234 44 . 119 1154 Thermal 536 | 59 333 . 144 . . . . Explosive 2247 | . 312 38 160 283 . . 1454 Electromagnetic 250 | . . . 149 . . 101 . Impact 287 | . . . . . . . 287 Slashing 1449 | . . . . . 1449 . . Piercing . | . . . . . . . . Highest Corruption 4 | . . . . . . 1 4 Average Corruption 3 | . . . . . . 1 4 Corruption Purged . | . . . . . . . . Corruption Blocked . | . . . . . . . . Overload Shots . | . . . . . . . . Overflow Damage 282 | . . . 3 . 130 . 149 Projectiles 10 | . . . . . . . 10 Explosions . | . . . . . . . . Melee 272 | . . . 3 . 130 . 139 Knockbacks 8 | . . . . . . . 8 Impact 3 | . . . . . . . 3 Kinetic 4 | . . . . . . . 4 Secondary 1 | . . . . . . . 1 Self-Inflicted Damage 65 | . . . . 23 . . 42 Shots 3 | . . . . 1 . . 2 Rammed . | . . . . . . . . Targets Rammed 1 | . . . 1 . . . . Kicked 1 | . . . 1 . . . . Crushed . | . . . . . . . . Highest Temperature 382 | . 144 23 84 . . 18 382 Average Temperature 36 | . 38 11 19 . . 15 70 Received Heat Transfer 1557 | . 198 96 237 . . 18 1008 Siege Activations . | . . . . . . . . Martial Activations . | . . . . . . . . Shielding Activations . | . . . . . . . . Robots Disrupted . | . . . . . . . . Combat Hostiles . | . . . . . . . . Robots Corrupted 4 | . . . 1 . . . 3 Combat Hostiles 2 | . . . . . . . 2 Parts Fried 2 | . . . . . . . 2 Impact Corruptions 7 | . . . 1 . . . 6 Robots Melted . | . . . . . . . . Combat Hostiles . | . . . . . . . . Parts Melted 5 | . 4 . 1 . . . . Heat Transferred 1274 | 125 779 . 370 . . . . Parts Sabotaged . | . . . . . . . . Parts Stolen . | . . . . . . . . Parts Stripped . | . . . . . . . . Power Chain Reactions . | . . . . . . . . Alert | -11 -10 -10 -9 -9 -9 -8 -8 ------- Run | Yrd Mat Min Mat Min Exi Min Mat Maximum Alert Level 2 | . . . 1 . . . 2 Low Security (%) 70 | 100 100 100 19 100 . 100 68 Level 1 26 | . . . 80 . . . 15 Level 2 3 | . . . . . . . 16 Level 3 . | . . . . . . . . Level 4 . | . . . . . . . . Level 5 . | . . . . . . . . High Security . | . . . . . . . . Max Security . | . . . . . . . . Peak Influence 581 | 15 170 155 309 173 . 106 581 Initial 61 | . . 61 39 3 . . 9 Average 130 | 2 61 105 226 50 . 49 177 Influence Increases 2954 | 25 492 159 826 190 25 186 1051 Destroy 0b10 Robot/C 1800 | . 260 100 500 140 . 140 660 Destroy 0b10 Robot/NC 190 | 25 25 5 85 . 25 5 20 Destroy Leader 448 | . 64 20 160 20 . 20 164 Allied During Kill 120 | . . 11 54 . . 21 34 Successful Hack 45 | . 28 . . . . . 17 Disable Machine 60 | . . 15 . . . . 45 Destroy Structure 186 | . 25 8 12 30 . . 111 Partial Spotted 15 | . 15 . . . . . . Lose Combat Pursuer 90 | . 75 . 15 . . . . Influence Decreases 2456 | 25 333 218 916 200 25 160 579 Entered New Map 183 | . . 98 61 7 . . 17 Time Decay 1725 | 25 333 110 537 193 25 140 362 Lost Part 170 | . . . 10 . . . 160 Lost Ally 130 | . . 10 60 . . 20 40 Purge Threat 248 | . . . 248 . . . . Squads Dispatched 9 | . 2 . 1 . . . 6 Investigation 1 | . . . . . . . 1 Extermination . | . . . . . . . . Reinforcement 7 | . 2 . 1 . . . 4 Assault . | . . . . . . . . Garrison 1 | . . . . . . . 1 Intercept . | . . . . . . . . Searches Triggered . | . . . . . . . . Construction Impeded 1 | . . . . . . . 1 Haulers Reinforced . | . . . . . . . . Active Scanning Responses . | . . . . . . . . Cargo Convoy Interrupts . | . . . . . . . . Stealth | -11 -10 -10 -9 -9 -9 -8 -8 --------- Run | Yrd Mat Min Mat Min Exi Min Mat Distress Signals 7 | . 2 . 4 . . . 1 Communications Jammed . | . . . . . . . . Distress Signals . | . . . . . . . . Times Spotted 123 | . 23 4 30 7 . 7 52 Peak Tracking Total 13 | . 4 2 6 4 . 4 13 Tactical Retreats 4 | . 3 . 1 . . . . Traps | -11 -10 -10 -9 -9 -9 -8 -8 ------- Run | Yrd Mat Min Mat Min Exi Min Mat Traps Triggered 1 | . . . . . . . 1 Indirectly . | . . . . . . . . Trap Hack Attempts . | . . . . . . . . Triggered . | . . . . . . . . Disarmed . | . . . . . . . . Reprogrammed . | . . . . . . . . Reused . | . . . . . . . . Traps Extracted . | . . . . . . . . Installed . | . . . . . . . . Triggered . | . . . . . . . . Machines | -11 -10 -10 -9 -9 -9 -8 -8 ---------- Run | Yrd Mat Min Mat Min Exi Min Mat Machines Disabled 4 | . . 1 . . . . 3 Max in Single Turn 1 | . . 1 . . . . 1 Machines Repaired . | . . . . . . . . Machines Dismantled . | . . . . . . . . Machines Sabotaged . | . . . . . . . . Overloaded Fab Kills . | . . . . . . . . Hacking | -11 -10 -10 -9 -9 -9 -8 -8 --------- Run | Yrd Mat Min Mat Min Exi Min Mat Machines Accessed 23 | . 7 . 6 . 2 . 8 Terminals 17 | . 5 . 5 . . . 7 Fabricators . | . . . . . . . . Repair Stations 3 | . 1 . 1 . . . 1 Recycling Units 1 | . 1 . . . . . . Scanalyzers . | . . . . . . . . Garrison Access . | . . . . . . . . Total Hacks 60 | . 21 . 13 . 5 . 21 Successful 28 | . 13 . 3 . 5 . 7 Failed 32 | . 8 . 10 . . . 14 Catastrophic 2 | . 1 . 1 . . . . Database Lockouts . | . . . . . . . . Manual 38 | . 13 . 7 . 1 . 17 Terminals 45 | . 17 . 11 . . . 17 Fabricators . | . . . . . . . . Repair Stations 7 | . 1 . 2 . . . 4 Recycling Units 3 | . 3 . . . . . . Scanalyzers . | . . . . . . . . Garrison Access . | . . . . . . . . Terminal Hacks 10 | . 3 . 2 . 5 . . Record 4 | . . . . . 4 . . Robot Analysis 1 | . 1 . . . . . . Unreport Threat 2 | . . . 2 . . . . Locate Traps 2 | . 2 . . . . . . Proto ID Catalog 1 | . . . . . 1 . . Fabricator Hacks . | . . . . . . . . Repair Station Hacks 2 | . . . . . . . 2 Scan Component 1 | . . . . . . . 1 Repair 1 | . . . . . . . 1 Recycling Unit Hacks . | . . . . . . . . Scanalyzer . | . . . . . . . . Garrison Access Hacks . | . . . . . . . . Unauthorized Hacks 16 | . 10 . 1 . . . 5 Terminals 14 | . 8 . 1 . . . 5 Assimilate 1 | . 1 . . . . . . Botnet 3 | . 2 . . . . . 1 Skim 10 | . 5 . 1 . . . 4 Fabricators . | . . . . . . . . Repair Stations . | . . . . . . . . Recycling Units 2 | . 2 . . . . . . Reject 1 | . 1 . . . . . . Recyclers 1 | . 1 . . . . . . Scanalyzers . | . . . . . . . . Garrison Access . | . . . . . . . . Data Cores Recovered . | . . . . . . . . Used . | . . . . . . . . Hacking Detections 18 | . 6 . 6 . . . 6 Full Trace Events . | . . . . . . . . Feedback Events . | . . . . . . . . Feedback Blocked . | . . . . . . . . Robot Schematics Acquired . | . . . . . . . . Robots Built . | . . . . . . . . Authchips . | . . . . . . . . Time . | . . . . . . . . Total Robot Build Rating . | . . . . . . . . Part Schematics Acquired . | . . . . . . . . Parts Built . | . . . . . . . . Authchips . | . . . . . . . . Time . | . . . . . . . . Total Part Build Rating . | . . . . . . . . Parts Repaired 1 | . . . . . . . 1 Time 32 | . . . . . . . 32 Parts Recycled . | . . . . . . . . Recycled Matter . | . . . . . . . . Retrieved Matter . | . . . . . . . . Retrieved Components . | . . . . . . . . Parts Scanalyzed . | . . . . . . . . Part Schematics Acquired . | . . . . . . . . Parts Damaged . | . . . . . . . . Bothacking | -11 -10 -10 -9 -9 -9 -8 -8 ------------ Run | Yrd Mat Min Mat Min Exi Min Mat Used RIF Installer . | . . . . . . . . Robots Hacked . | . . . . . . . . Non-combat . | . . . . . . . . Combat . | . . . . . . . . Robot Hacks Applied . | . . . . . . . . Relay Couplers Released . | . . . . . . . . Fabnet Peak Effective % . | . . . . . . . . Robots Rewired 3 | . . . . . 3 . . Allies Hacked . | . . . . . . . . Hacks Repelled . | . . . . . . . . Allies | -11 -10 -10 -9 -9 -9 -8 -8 -------- Run | Yrd Mat Min Mat Min Exi Min Mat Total Allies 7 | . 1 3 . . 3 . . Largest Group 3 | . 1 3 3 . 3 3 2 Highest-Rated Group 40 | . 10 40 40 . 37 37 29 Highest-Rated Ally 21 | . 10 16 16 . 21 21 21 Total Orders . | . . . . . . . . Ally Attacks 78 | . . 2 45 . . 10 21 Total Damage 1073 | . . 31 435 . . 136 471 Kills 16 | . . 1 11 . . . 4 Allies Corrupted . | . . . . . . . . Allies Melted . | . . . . . . . . Intel | -11 -10 -10 -9 -9 -9 -8 -8 ------- Run | Yrd Mat Min Mat Min Exi Min Mat Active Infowar (turns) 6048 | 74 1148 220 1344 674 1202 379 1007 Sensors 61 | . . . 61 . . . . Terrain 50 | . 50 . . . . . . Structural 947 | . . . . . . . 947 Seismic 5723 | 74 1098 220 1344 674 1202 379 732 Robot Analysis Total 1 | . 1 . . . . . . Derelict Logs Recovered 2 | . . . . 2 . . . Drone Launches . | . . . . . . . . Drone Recoveries . | . . . . . . . . Exploration | -11 -10 -10 -9 -9 -9 -8 -8 ------------- Run | Yrd Mat Min Mat Min Exi Min Mat Turns Passed 6557 | 155 1323 220 1574 674 1202 379 1030 Spaces Moved 3521 | 96 637 132 759 341 699 261 596 Core 7 | 5 . . . . . . 2 Treads . | . . . . . . . . Legs 3504 | 83 637 132 759 341 699 261 592 Wheels 10 | 8 . . . . . . 2 Hover . | . . . . . . . . Flight . | . . . . . . . . Fastest Speed 50 | 50 120 120 120 190 126 126 120 Average Speed 150 | 116 148 120 165 190 157 126 124 Slowest Speed 400 | 120 190 120 190 190 190 126 400 Overloaded Moves . | . . . . . . . . Propulsion Burnouts . | . . . . . . . . Robots Hopped . | . . . . . . . . Potential Cave-ins . | . . . . . . . . Cave-ins Triggered 1 | . . . . . . . 1 Exploration Rate (%) 60 | 6 81 46 65 64 92 60 66 Regions Visited 7 Branch Regions 4 Pre-discovered Areas 2 | . . . . 1 1 . . Known Exits Taken . | . . . . . . . . Unknown Exits Taken 7 | 1 1 1 1 1 1 1 . Scrap Searched 4 | . . . . 3 . 1 . Spaces Dug 3 | . 2 . . . . . 1 Terrain Destroyed 186 | . 22 9 10 36 . . 109 Melee 1 | . . . . . . . 1 Projectile 14 | . 2 . . . . . 12 AOE 171 | . 20 9 10 36 . . 96 Terrain Rammed . | . . . . . . . . Walls Destroyed . | . . . . . . . . Machines Disabled . | . . . . . . . . Actions | -11 -10 -10 -9 -9 -9 -8 -8 --------- Run | Yrd Mat Min Mat Min Exi Min Mat Total 4373 | 123 923 171 950 360 780 291 775 Wait 299 | 7 193 21 23 6 5 12 32 Move 3514 | 95 636 131 758 340 698 260 596 Hop . | . . . . . . . . Pick Up 59 | 5 9 1 20 3 5 2 14 Fast Attach 16 | 8 . . 3 . . . 5 Attach 12 | . . . 3 . . . 9 Detach 3 | 1 . . 2 . . . . Swap 108 | 1 22 3 28 4 6 5 39 Drop 85 | . 14 2 34 3 6 2 24 Fire 208 | 6 49 13 78 4 . 10 48 Melee 27 | . . . . . 19 . 8 Ram . | . . . . . . . . Kick 1 | . . . 1 . . . . Crush . | . . . . . . . . Escape Stasis . | . . . . . . . . Rewire 41 | . . . . . 41 . . Trap . | . . . . . . . . Miscellaneous . | . . . . . . . . Route ------- -11/Scrapyard -10/Materials (discovered 4 exits: *Mat x2 / [*Min] / [*Sub]) -10/Mines -9/Materials (discovered 3 exits: *Mat x2 / [*Min]) -9/Mines (discovered 3 exits: *Mat x2 / *Exi) -9/Exiles (discovered 2 exits: [*Min x2]) -8/Mines -8/Materials (discovered 4 exits: [*Fac x2] / [*Sto x2]) History --------- Turn | Location | Event 16 | -11/Scrapyard | Discovered new exit (range 16) 156 | -11/Scrapyard | Entered Materials 317 | -10/Materials | Build established: Mutant 899 | -10/Materials | Discovered new exit (range 10) 1067 | -10/Materials | Discovered new exit (range 4) 1315 | -10/Materials | Discovered new exit (range 15) 1467 | -10/Materials | Discovered new exit (range 6) 1479 | -10/Materials | Entered Mines 1479 | -10/Mines | Accompanied by 1 ally 1486 | -10/Mines | Core integrity fell below 50% 1543 | -10/Mines | Discovered new exit (range 15) 1566 | -10/Mines | Assisted by bots powering up and referring to "LRC-V3" 1620 | -10/Mines | Build established: Scavenger-Mutant 1699 | -10/Mines | Entered Materials 1699 | -9/Materials | Accompanied by 3 allies 1699 | -9/Materials | Evolved 2 slots: Propulsion x1, Utility x1 2122 | -9/Materials | Discovered new exit (range 12) 3059 | -9/Materials | Discovered new exit (range 5) 3166 | -9/Materials | Discovered new exit (range 7) 3273 | -9/Materials | Entered Mines 3586 | -9/Mines | Discovered new exit (range 8) 3657 | -9/Mines | Found a hidden stash of uninstalled traps 3822 | -9/Mines | Discovered new exit (range 14) 3831 | -9/Mines | Learned Materials emergency access door positions 3833 | -9/Mines | Learned location of Zion (-6) 3939 | -9/Mines | Deemed a non-threat by the Exiles lab entrance 3939 | -9/Mines | Discovered new exit (range 5) 3947 | -9/Mines | Entered Exiles 3947 | -9/Exiles | Found Exiles lab destroyed 3978 | -9/Exiles | Discovered new exit (range 15) 4257 | -9/Exiles | Opened EX-Vault 4273 | -9/Exiles | Found Supersonic Drone Bay 4578 | -9/Exiles | Build established: Mutant 5127 | -9/Exiles | Discovered new exit (range 14) 5149 | -9/Exiles | Entered Mines 5149 | -8/Mines | Accompanied by 3 allies 5516 | -8/Mines | Discovered new exit (range 4) 5528 | -8/Mines | Entered Materials 5528 | -8/Materials | Accompanied by 2 allies 5528 | -8/Materials | Evolved 2 slots: Propulsion x1, Utility x1 6030 | -8/Materials | Repaired Rocket Launcher 6132 | -8/Materials | Discovered new exit (range 7) 6182 | -8/Materials | Discovered new exit (range 9) 6238 | -8/Materials | Discovered new exit (range 15) 6423 | -8/Materials | Destroyed 11 combat bots 6500 | -8/Materials | Discovered new exit (range 9) 6524 | -8/Materials | Garrison activated, responded to threat 6535 | -8/Materials | Core integrity fell below 50% 6546 | -8/Materials | Crushed by falling debris 6553 | -8/Materials | Core integrity fell below 20% 6558 | -8/Materials | Destroyed by X-62 Marksman with Pulse Rifle Last Messages --------------- 06550_ Arm. Wheel destroyed. 06550_ Seismic Detector destroyed. 06550_ Knocked back. 06551_ Acquired 6 matter. 06551_ U-05 Engineer lays Concrete. 06551_ Penetrated by Slug. 06551_ Cld. Deuterium Engine destroyed. 06552_ U-05 Engineer lays Concrete. 06552_ Critical hit (Burn: +37). 06553_ K-01 Serf collects debris. 06553_ U-05 Engineer lays Concrete. 06554_ Penetrated by Slug. 06554_ U-05 Engineer lays Concrete. 06555_ Penetrated by Slug. 06556_ U-05 Engineer lays Concrete. 06556_ Acquired 6 matter. 06557_ U-05 Engineer lays Concrete. 06557_ K-01 Serf collects debris. 06558_ U-05 Engineer lays Concrete. 06558_ Penetrated by Slug. Map ----- +----------------------------------------------------+ | ?????????????????????????????????????????????????? | | ?????????????????????????????????????????????????? | | ?????????????????????????????????????????????????? | | ?????????????????????????????????????????????????? | | ?????????????????????????????????????????????????? | | ??????????????????????????????? #####??????????? | | ??????????????????????????????? #####??????????? | | ?????????????????????????????## ?????????? | | ????????????????????????????### ?????????? | | ????????????????????????????### ??????????? | | ?????????????????#############" ? "???????? | | ?????????????????############# ""??????? | | ?????????????????## ### """?????? | | ?????????????????##! # "T"" ""?????? | | ????????????????### """ """ # "" ??????? | | ????????????????### """ """ + ?????? | | ????????????????## !""" """ # ????????? | | ????????????????##"!%* # ###########????? | | ????????????????### [ ! # ## ########????? | | ????????????????### "T" # [%*# # ????? | | ?????????????????########## # !# """ "" # ????? | | ?????????????????########### * +=""" T" # ????? | | ???????????????????# ######## = =#[""" "" # ????? | | ????????????????????# #"""""#%=[=# # ????? | | ???????????????????##;; ""# %==#% % # ????? | | ??????????????#????# # @% w % # ????? | | ????????????#? ????##=xxgg *# # ????? | | ????????????# ????##Hg"Y"g ######## ## | | ????????????# ""???##Y![k %=[!##############+## | | ????????????# G"?? * = ![ ! | | ?????????????? """ g "" ![= %%=* | | ???????????????? k# gu """"" [ | | ???????????#######/ * """"" ### #########+## | | ???????????# % """" ### ### | | ???????????# a """ ### ### | | ???????????# ###+### """ | | ???????????# # # """"" | | ???????????#% ";## # +###### # ! #! """"" | | ???????????# < ##### T ## # # """"" | | ???????????# ?????## """ ?## + ! *+ """ | | ???????????##???????? """ ## # # | | ????????????????????? ?"" ## # ####+##### | | ?????????????????????? ??? !## # #### ##### | | ???????????????????????????? ## ########???##### | | ?????????????????????????????## ########## | | ?????????????????????????????## ##?????######## | | ?????????????????????????? ## ########## | | ??????????????????????????##+## #########" | | ??????????????????????????## < [ | | ??????????????????????????## ########## | +----------------------------------------------------+ Best States ------------- Heat Dissipation 35 Energy Generation 18 Energy Capacity 310 Matter Stores 410 Matter Capacity 500 Sight Range 16 Robot Scan Range 14 Terrain Scan Range 16 Terrain Scan Density 10 Armor Coverage 225 Evasion (%) 55 Targeting Accuracy 8 Item Schematics ----------------- None Robot Schematics ------------------ None Fabricated ------------ Nothing Repaired ---------- Rocket Launcher | 52% | -8/Materials Alien Tech Used ----------------- None Achievements -------------- None Challenges ------------ None Game ------ Seed DirtyTractorInterpreter Manual? 0 Play Time 01:01:37 Cumulative 129.9 hours Start 2025.09.24 @ 18:42:40 End 2025.09.28 @ 14:36:02 Sessions 3 Manual Loads 0 Difficulty Rogue Special Mode None Game No. 144 Rogue 144 Adventurer 0 Explorer 0 Win Type - Total 0 Types 0/0/0/0/0/0/0/0/0/0 Lore% 62 Gallery% 46 Achievement% 37 Wizard Run 0 Options --------- Layout 1 ASCII 0 Keyboard 0 Movement Mouse Keybinds 0 Fullscreen 2 Font 48/Smallcaps Map View 50x35 Zoom Use 0% Tactical HUD 1 Map Filters NONE Filters NONE Steam 0 RUN: 2e73fa8c-47ed-4a47-8f84-a92a4fa9fa54